fUSD/lending_fUSD_20240114
["ID","MTS","AMOUNT","RATE_DAILY","PERIOD"]
[311636424,1705275061125,-1317.44,0.00030136,2]
[311636425,1705275061134,-4585.69,0.00030136,2]
[311636426,1705275061143,-500.0,0.00030136,2]
[311636427,1705275061152,-1260.31,0.00030136,2]
[311636428,1705275061164,-500.0,0.00030136,2]
[311636429,1705275061173,-500.0,0.00030136,2]
[311636430,1705275061184,-1225.71,0.00030136,2]
[311636431,1705275061193,-500.0,0.00030136,2]
[311636432,1705275061203,-500.0,0.00030136,2]
[311636433,1705275061212,-500.0,0.00030136,2]
[311636434,1705275061222,-500.0,0.00030136,2]
[311636435,1705275061232,-722.11,0.00030136,2]
[311636436,1705275061241,-500.0,0.00030136,2]
[311636437,1705275061251,-500.0,0.00030136,2]
[311636438,1705275061260,-464.23572832,0.00030136,2]
[311636439,1705275061270,-500.0,0.00030136,2]
[311636440,1705275061279,-500.0,0.00030136,2]
[311636441,1705275061289,-2704.84,0.00030136,2]
[311636442,1705275061298,-704.87,0.00030136,2]
[311636443,1705275061308,-500.0,0.00030136,2]
[311636444,1705275061317,-633.86,0.00030136,2]
[311636445,1705275061326,-500.0,0.00030136,2]
[311636446,1705275061335,-695.92,0.00030136,2]
[311636447,1705275061344,-500.0,0.00030136,2]
[311636448,1705275061355,-7584.93,0.00030136,2]
[311636449,1705275061364,-500.0,0.00030136,2]
[311636450,1705275061373,-661.84,0.00030136,2]
[311636451,1705275061384,-500.0,0.00030136,2]
[311636452,1705275061393,-842.81,0.00030136,2]
[311636453,1705275061402,-500.0,0.00030136,2]
[311636454,1705275061411,-814.83,0.00030136,2]
[311636455,1705275061420,-660.29,0.00030136,2]
[311636456,1705275061429,-500.0,0.00030136,2]
[311636457,1705275061438,-500.0,0.00030136,2]
[311636458,1705275061447,-500.0,0.00030136,2]
[311636459,1705275061456,-500.0,0.00030136,2]
[311636460,1705275061465,-870.79,0.00030136,2]
[311636461,1705275061475,-500.0,0.00030136,2]
[311636462,1705275061484,-500.0,0.00030136,2]
[311636463,1705275061494,-3167.37,0.00030136,2]
[311636464,1705275061503,-500.0,0.00030136,2]
[311636465,1705275061512,-500.0,0.00030136,2]
[311636466,1705275061521,-1520.93,0.00030136,2]
[311636467,1705275061531,-500.0,0.00030136,2]
[311636468,1705275061540,-500.0,0.00030136,2]
[311636469,1705275061549,-500.0,0.00030136,2]
[311636470,1705275061559,-1000.0,0.00030136,2]
[311636471,1705275061569,-500.0,0.00030136,2]
[311636472,1705275061578,-500.0,0.00030136,2]
[311636473,1705275061587,-706.62,0.00030136,2]
[311636474,1705275061597,-500.0,0.00030136,2]
[311636475,1705275061606,-500.0,0.00030136,2]
[311636476,1705275061615,-500.0,0.00030136,2]
[311636477,1705275061625,-5186.23,0.00030136,2]
[311636478,1705275061634,-500.0,0.00030136,2]
[311636479,1705275061645,-500.0,0.00030136,2]
[311636480,1705275061655,-5136.91,0.00030136,2]
[311636481,1705275061665,-2635.63,0.00030136,2]
[311636482,1705275061675,-22527.59,0.00030136,2]
[311636483,1705275061685,-500.55913506,0.00030136,2]
[311636484,1705275061694,-500.0,0.00030136,2]
[311636485,1705275061704,-500.0,0.00030136,2]
[311636486,1705275061713,-11569.35,0.00030136,2]
[311636487,1705275061723,-500.0,0.00030136,2]
[311636488,1705275061733,-500.0,0.00030136,2]
[311636489,1705275061742,-500.0,0.00030136,2]
[311636490,1705275061751,-690.35,0.00030136,2]
[311636491,1705275061761,-626.92,0.00030136,2]
[311636492,1705275061770,-500.0,0.00030136,2]
[311636493,1705275061779,-500.0,0.00030136,2]
[311636494,1705275061789,-500.0,0.00030136,2]
[311636495,1705275061798,-500.0,0.00030136,2]
[311636496,1705275061808,-2351.89,0.00030136,2]
[311636497,1705275061818,-500.0,0.00030136,2]
[311636498,1705275061827,-516.37916931,0.00030136,2]
[311636499,1705275061836,-500.0,0.00030136,2]
[311636500,1705275061846,-561.65,0.00030136,2]
[311636501,1705275061855,-967.33,0.00030136,2]
[311636502,1705275061865,-500.0,0.00030136,2]
[311636503,1705275061874,-500.0,0.00030136,2]
[311636504,1705275061884,-500.0,0.00030136,2]
[311636505,1705275061893,-1492.55,0.00030136,2]
[311636506,1705275061903,-1082.45,0.00030136,2]
[311636507,1705275061913,-5299.23,0.00030136,2]
[311636508,1705275061922,-500.0,0.00030136,2]
[311636509,1705275061934,-500.0,0.00030136,2]
[311636510,1705275061944,-500.0,0.00030136,2]
[311636511,1705275061954,-500.0,0.00030136,2]
[311636512,1705275061964,-548.47,0.00030136,2]
[311636513,1705275061973,-500.0,0.00030136,2]
[311636514,1705275061983,-1158.5,0.00030136,2]
[311636515,1705275061992,-500.0,0.00030136,2]
[311636516,1705275062002,-150.0,0.00030136,120]
[311636517,1705275062011,-150.0,0.00030136,120]
[311636518,1705275062021,-150.0,0.00030136,120]
[311636519,1705275062030,-150.0,0.00030136,120]
[311636520,1705275062039,-500.0,0.00030136,2]
[311636521,1705275062048,-150.0,0.00030136,120]
[311636522,1705275062057,-150.0,0.00030136,120]
[311636523,1705275062066,-500.0,0.00030136,2]
[311636524,1705275062076,-7472.54,0.00030136,2]
[311636525,1705275062085,-150.0,0.00030136,120]
[311636526,1705275062095,-500.0,0.00030136,2]
[311636527,1705275062105,-500.0,0.00030136,2]
[311636528,1705275062114,-150.0,0.00030136,120]
[311636529,1705275062123,-150.0,0.00030136,120]
[311636530,1705275062133,-787.55,0.00030136,2]
[311636531,1705275062146,-1453.54,0.00030136,2]
[311636532,1705275062155,-150.0,0.00030136,120]
[311636533,1705275062164,-1206.37,0.00030136,2]
[311636534,1705275062174,-150.0,0.00030136,120]
[311636535,1705275062186,-500.0,0.00030136,2]
[311636536,1705275062195,-500.0,0.00030136,2]
[311636537,1705275062205,-150.0,0.00030136,120]
[311636538,1705275062214,-150.0,0.00030136,120]
[311636539,1705275062225,-500.0,0.00030136,2]
[311636540,1705275062234,-150.0,0.00030136,120]
[311636541,1705275062244,-150.0,0.00030136,120]
[311636542,1705275062253,-150.0,0.00030136,120]
[311636543,1705275062262,-150.0,0.00030136,120]
[311636544,1705275062272,-567.6,0.00030136,2]
[311636545,1705275062281,-150.0,0.00030136,120]
[311636546,1705275062291,-150.0,0.00030136,120]
[311636547,1705275062300,-500.0,0.00030136,2]
[311636548,1705275062309,-150.0,0.00030136,120]
[311636549,1705275062319,-638.11,0.00030136,2]
[311636550,1705275062328,-150.0,0.00030136,120]
[311636551,1705275062338,-251.07615128,0.00030136,120]
[311636552,1705275062347,-500.0,0.00030136,2]
[311636553,1705275062357,-1752.17,0.00030136,2]
[311636554,1705275062366,-500.0,0.00030136,2]
[311636555,1705275062376,-2517.79,0.00030136,2]
[311636556,1705275062386,-527.97,0.00030136,2]
[311636557,1705275062395,-1718.47,0.00030136,2]
[311636558,1705275062405,-500.0,0.00030136,2]
[311636559,1705275062415,-500.0,0.00030136,2]
[311636560,1705275062425,-901.92,0.00030136,2]
[311636561,1705275062436,-500.0,0.00030136,2]
[311636562,1705275062445,-500.0,0.00030136,2]
[311636563,1705275062455,-500.0,0.00030136,2]
[311636564,1705275062464,-294.62688117,0.00030136,2]
[311636565,1705275062474,-626.62,0.00030136,2]
[311636566,1705275062484,-500.0,0.00030136,2]
[311636567,1705275062494,-500.0,0.00030136,2]
[311636568,1705275062503,-568.2,0.00030136,2]
[311636569,1705275062513,-500.0,0.00030136,2]
[311636570,1705275062522,-500.0,0.00030136,2]
[311636571,1705275062532,-556.0,0.00030136,2]
[311636572,1705275062542,-842.23,0.00030136,2]
[311636573,1705275062551,-1190.8,0.00030136,2]
[311636574,1705275062561,-1472.51,0.00030136,2]
[311636575,1705275062571,-500.0,0.00030136,2]
[311636576,1705275062585,-790.35,0.00030136,2]
[311636577,1705275062594,-613.87322824,0.00030136,2]
[311636578,1705275062604,-500.63849218,0.00030136,2]
[311636579,1705275062614,-560.68,0.00030136,2]
[311636580,1705275062623,-525.7832257,0.00030136,2]
[311636581,1705275062633,-500.0,0.00030136,2]
[311636582,1705275062643,-1097.42,0.00030136,2]
[311636583,1705275062652,-500.0,0.00030136,2]
[311636584,1705275062661,-500.0,0.00030136,2]
[311636585,1705275062671,-517.98137171,0.00030136,2]
[311636586,1705275062680,-500.0,0.00030136,2]
[311636587,1705275062691,-500.0,0.00030136,2]
[311636588,1705275062700,-500.0,0.00030136,2]
[311636589,1705275062709,-500.0,0.00030136,2]
[311636590,1705275062718,-915.94,0.00030136,2]
[311636591,1705275062727,-500.0,0.00030136,2]
[311636592,1705275062737,-2338.63,0.00030136,2]
[311636593,1705275062746,-500.0,0.00030136,2]
[311636594,1705275062757,-500.0,0.00030136,2]
[311636595,1705275062767,-1132.08,0.00030136,2]
[311636596,1705275062776,-500.0,0.00030136,2]
[311636597,1705275062786,-926.33,0.00030136,2]
[311636598,1705275062796,-500.0,0.00030136,2]
[311636599,1705275062806,-500.0,0.00030136,2]
[311636600,1705275062816,-500.0,0.00030136,2]
[311636601,1705275062826,-500.0,0.00030136,2]
[311636602,1705275062835,-611.48266816,0.00030136,2]
[311636603,1705275063594,-140.02733184,0.00030136,2]
[311636604,1705275063603,-719.50830816,0.00030136,2]
[311636605,1705275063653,-481.67169184,0.00030136,2]
[311636606,1705275063663,-500.0,0.00030136,2]
[311636607,1705275063672,-2768.18,0.00030136,2]
[311636608,1705275063682,-500.0,0.00030136,2]
[311636609,1705275063692,-1289.64,0.00030136,2]
[311636610,1705275063702,-500.0,0.00030136,2]
[311636611,1705275063711,-500.0,0.00030136,2]
[311636612,1705275063721,-1158.47,0.00030136,2]
[311636613,1705275063730,-500.0,0.00030136,2]
[311636614,1705275063740,-398.3988833,0.00030136,2]
[311636615,1705275063776,-101.6011167,0.00030136,2]
[311636616,1705275063785,-331.6059125,0.00030136,2]
[311636617,1705275063830,-168.3940875,0.00030136,2]
[311636618,1705275063840,-500.0,0.00030136,2]
[311636619,1705275063849,-4569.49,0.00030136,2]
[311636620,1705275063859,-1029.49,0.00030136,2]
[311636621,1705275063868,-500.0,0.00030136,2]
[311636622,1705275063878,-500.0,0.00030136,2]
[311636623,1705275063887,-500.0,0.00030136,2]
[311636624,1705275063897,-1168.39,0.00030136,2]
[311636625,1705275063906,-1833.65,0.00030136,2]
[311636626,1705275063915,-500.0,0.00030136,2]
[311636627,1705275063925,-500.0,0.00030136,2]
[311636628,1705275063934,-1146.42,0.00030136,2]
[311636629,1705275063946,-500.0,0.00030136,2]
[311636630,1705275063955,-1113.97,0.00030136,2]
[311636631,1705275063965,-1169.62,0.00030136,2]
[311636632,1705275063974,-500.0,0.00030136,2]
[311636633,1705275063983,-500.0,0.00030136,2]
[311636634,1705275063992,-500.0,0.00030136,2]
[311636635,1705275064002,-2345.04,0.00030136,2]
[311636636,1705275064011,-625.26,0.00030136,2]
[311636637,1705275064021,-192.40481372,0.00030136,2]
[311636638,1705275064061,-307.59518628,0.00030136,2]
[311636639,1705275064070,-291.83281372,0.00030136,2]
[311636640,1705275064143,-208.16718628,0.00030136,2]
[311636641,1705275064152,-500.0,0.00030136,2]
[311636642,1705275064161,-1355.22,0.00030136,2]
[311636643,1705275064170,-500.0,0.00030136,2]
[311636644,1705275064180,-1160.78,0.00030136,2]
[311636645,1705275064189,-744.58,0.00030136,2]
[311636646,1705275064199,-500.0,0.00030136,2]
[311636647,1705275064209,-500.0,0.00030136,2]
[311636648,1705275064219,-1000.0,0.00030136,2]
[311636649,1705275064228,-500.0,0.00030136,2]
[311636650,1705275064237,-973.05,0.00030136,2]
[311636651,1705275064246,-798.99,0.00030136,2]
[311636652,1705275064254,-2608.43,0.00030136,2]
[311636653,1705275064264,-2413.54,0.00030136,2]
[311636654,1705275064273,-500.0,0.00030136,2]
[311636655,1705275064283,-500.0,0.00030136,2]
[311636656,1705275064292,-500.0,0.00030136,2]
[311636657,1705275064301,-511.92,0.00030136,2]
[311636658,1705275064311,-500.0,0.00030136,2]
[311636659,1705275064320,-500.0,0.00030136,2]
[311636660,1705275064330,-500.0,0.00030136,2]
[311636661,1705275064340,-500.0,0.00030136,2]
[311636662,1705275064350,-250.0,0.00030136,2]
[311636663,1705275064359,-500.0,0.00030136,2]
[311636664,1705275064368,-9305.48,0.00030136,2]
[311636665,1705275064378,-500.0,0.00030136,2]
[311636666,1705275064387,-500.0,0.00030136,2]
[311636667,1705275064396,-500.0,0.00030136,2]
[311636668,1705275064405,-2103.78,0.00030136,2]
[311636669,1705275064414,-500.0,0.00030136,2]
[311636670,1705275064424,-500.0,0.00030136,2]
[311636671,1705275064433,-500.0,0.00030136,2]
[311636672,1705275064445,-2576.4,0.00030136,2]
[311636673,1705275064455,-500.0,0.00030136,2]
[311636674,1705275064464,-500.0,0.00030136,2]
[311636675,1705275064474,-1206.05,0.00030136,2]
[311636676,1705275064483,-500.0,0.00030136,2]
[311636677,1705275064492,-500.0,0.00030136,2]
[311636678,1705275064501,-500.0,0.00030136,2]
[311636679,1705275064510,-500.0,0.00030136,2]
[311636680,1705275064520,-500.0,0.00030136,2]
[311636681,1705275064528,-279.22463283,0.00030136,2]
[311636682,1705275064537,-590.29,0.00030136,2]
[311636683,1705275064547,-1004.09818089,0.00030136,2]
[311636684,1705275064559,-151.64181911,0.00030136,2]
[311636685,1705275064568,-992.73,0.00030136,2]
[311636686,1705275064578,-510.63341331,0.00030136,2]
[311636687,1705275064587,-500.0,0.00030136,2]
[311636688,1705275064597,-500.0,0.00030136,2]
[311636689,1705275064606,-500.0,0.00030136,2]
[311636690,1705275064615,-500.0,0.00030136,2]
[311636691,1705275064624,-1128.49,0.00030136,2]
[311636692,1705275064633,-500.0,0.00030136,2]
[311636693,1705275064642,-500.0,0.00030136,2]
[311636694,1705275064651,-500.0,0.00030136,2]
[311636695,1705275064661,-840.59,0.00030136,2]
[311636696,1705275064670,-500.0,0.00030136,2]
[311636697,1705275064681,-500.0,0.00030136,2]
[311636698,1705275064693,-326.8560422,0.00030136,2]
[311636699,1705275064704,-173.1439578,0.00030136,2]
[311636700,1705275064713,-500.0,0.00030136,2]
[311636701,1705275064722,-436.39513852,0.00030136,2]
[311636702,1705275064733,-66.90175693,0.00030136,2]
[311636703,1705275064742,-696.69,0.00030136,2]
[311636704,1705275064752,-500.0,0.00030136,2]
[311636705,1705275064761,-910.94,0.00030136,2]
[311636706,1705275064771,-828.51,0.00030136,2]
[311636707,1705275064780,-500.0,0.00030136,2]
[311636708,1705275064790,-1064.17970707,0.00030136,2]
[311636709,1705275064802,-515.40000015,0.00030136,2]
[311636710,1705275064814,-2050.40029278,0.00030136,2]
[311636711,1705275064823,-501.95857793,0.00030136,2]
[311636712,1705275064833,-730.41,0.00030136,2]
[311636713,1705275064842,-3011.32,0.00030136,2]
[311636714,1705275064851,-500.0,0.00030136,2]
[311636715,1705275064861,-500.0,0.00030136,2]
[311636716,1705275064870,-500.0,0.00030136,2]
[311636717,1705275064879,-741.54,0.00030136,2]
[311636718,1705275064889,-2671.1,0.00030136,2]
[311636719,1705275064898,-3987.54,0.00030136,2]
[311636720,1705275064907,-500.0,0.00030136,2]
[311636721,1705275064916,-1500.42,0.00030136,2]
[311636722,1705275064926,-500.0,0.00030136,2]
[311636723,1705275064936,-500.0,0.00030136,2]
[311636724,1705275064946,-500.0,0.00030136,2]
[311636725,1705275064955,-500.0,0.00030136,2]
[311636726,1705275064965,-500.0,0.00030136,2]
[311636727,1705275064974,-500.0,0.00030136,2]
[311636728,1705275064984,-500.0,0.00030136,2]
[311636729,1705275064993,-500.0,0.00030136,2]
[311636730,1705275065002,-1484.29,0.00030136,2]
[311636731,1705275065011,-627.46,0.00030136,2]
[311636732,1705275065020,-500.0,0.00030136,2]
[311636733,1705275065030,-500.0,0.00030136,2]
[311636734,1705275065040,-500.0,0.00030136,2]
[311636735,1705275065049,-500.0,0.00030136,2]
[311636736,1705275065059,-500.0,0.00030136,2]
[311636737,1705275065068,-697.6,0.00030136,2]
[311636738,1705275065078,-500.0,0.00030136,2]
[311636739,1705275065088,-500.0,0.00030136,2]
[311636740,1705275065097,-500.0,0.00030136,2]
[311636741,1705275065107,-500.0,0.00030136,2]
[311636742,1705275065116,-515.03,0.00030136,2]
[311636743,1705275065126,-1211.64,0.00030136,2]
[311636744,1705275065136,-900.37,0.00030136,2]
[311636745,1705275065146,-500.0,0.00030136,2]
[311636746,1705275065155,-500.0,0.00030136,2]
[311636747,1705275065165,-5229.55,0.00030136,2]
[311636748,1705275065175,-504.12432828,0.00030136,2]
[311636749,1705275065184,-500.0,0.00030136,2]
[311636750,1705275065196,-1637.35,0.00030136,2]
[311636751,1705275065206,-666.15,0.00030136,2]
[311636752,1705275065215,-500.0,0.00030136,2]
[311636753,1705275065225,-500.0,0.00030136,2]
[311636754,1705275065235,-625.46336095,0.00030136,2]
[311636755,1705275065245,-500.0,0.00030136,2]
[311636756,1705275065255,-500.0,0.00030136,2]
[311636757,1705275065264,-1166.66,0.00030136,2]
[311636758,1705275065274,-891.04,0.00030136,2]
[311636759,1705275065284,-500.0,0.00030136,2]
[311636760,1705275065295,-500.0,0.00030136,2]
[311636761,1705275065304,-500.0,0.00030136,2]
[311636762,1705275065314,-1340.06,0.00030136,2]
[311636763,1705275065324,-559.96974326,0.00030136,2]
[311636764,1705275065334,-739.37,0.00030136,2]
[311636765,1705275065343,-500.0,0.00030136,2]
[311636766,1705275065352,-183.61952907,0.00030136,2]
[311636770,1705275244585,205.0,0.00021449,2]
[311637086,1705276048244,-246.50580772,0.00022171,2]
[311637087,1705276048265,-259.9949317,0.00022171,2]
[311637088,1705276048287,-383.89,0.00022172,2]
[311637089,1705276048307,-437.0664,0.00022335,14]
[311637090,1705276048328,-713.25,0.00022588,2]
[311637091,1705276048349,-155.0,0.00022659,2]
[311637092,1705276048371,-205.0,0.00022661,2]
[311637093,1705276048391,-547.56502599,0.00022748,5]
[311637094,1705276048411,-150.0,0.00022986,2]
[311637095,1705276048431,-154.52,0.00023,2]
[311637096,1705276048452,-736.62,0.0002308,2]
[311637097,1705276048473,-161.46254913,0.00023165,2]
[311637098,1705276048495,-744.19261684,0.00023265,2]
[311637099,1705276048515,-150.0,0.00023364,2]
[311637100,1705276048535,-150.0,0.00023364,2]
[311637101,1705276048556,-1627.26256806,0.00023365,2]
[311637105,1705276205577,4968.0,0.000301,90]
[311637141,1705276232877,-150.0,0.00023,2]
[311637142,1705276232887,-250.0,0.00023362,2]
[311637143,1705276232900,-480.43,0.00023362,2]
[311637144,1705276232909,-300.0,0.00023364,2]
[311637145,1705276232919,-21216.79621332,0.00023365,2]
[311637146,1705276232928,-6797.55,0.00023365,2]
[311637147,1705276232937,-737.1,0.00023366,2]
[311637148,1705276232947,-537.6354805,0.00024083,7]
[311637149,1705276232956,-487.53390948,0.00024083,2]
[311637150,1705276232966,-3326.78039808,0.00024083,2]
[311637151,1705276232975,-246.50580772,0.00024083,2]
[311637152,1705276232985,-256.98504056,0.00024083,2]
[311637153,1705276232994,-158.6546966,0.00024084,2]
[311637154,1705276233003,-1000.0,0.00024206,2]
[311637155,1705276233012,-383.89,0.00024436,2]
[311637156,1705276233021,-3000.0,0.00024658,2]
[311637157,1705276233031,-250.0,0.00024658,2]
[311637158,1705276233040,-249.53266689,0.00024814,3]
[311637159,1705276233049,-430.185,0.00024899,2]
[311637160,1705276233058,-1234.0,0.00024899,2]
[311637161,1705276233068,-1217.647,0.00024899,2]
[311637162,1705276233078,-1932.0,0.00024899,2]
[311637163,1705276233087,-2271.0,0.00024899,2]
[311637164,1705276233096,-2015.435,0.00024899,2]
[311637165,1705276233106,-150.0,0.00024899,2]
[311637166,1705276233117,-155.52791555,0.00024905,3]
[311637167,1705276233126,-671.63632902,0.00024958,3]
[311637168,1705276233136,-1350.0,0.00025,3]
[311637169,1705276233147,-1583.00550367,0.00025,2]
[311637170,1705276233157,-242.4965969,0.00025013,3]
[311637171,1705276233167,-500.0,0.00025013,3]
[311637173,1705276233177,-508.57409369,0.00025013,3]
[311637175,1705276233186,-1000.0,0.00025013,3]
[311637177,1705276233195,-500.0,0.00025176,2]
[311637178,1705276233206,-167.0,0.00025353,2]
[311637179,1705276233216,-420.0,0.00025353,2]
[311637180,1705276233225,-1000.0,0.000256,2]
[311637181,1705276233235,-2658.2278,0.000258,2]
[311637182,1705276233244,-729.7838,0.000258,2]
[311637183,1705276233255,-4928.7792,0.000258,2]
[311637184,1705276233265,-18509.30754759,0.000259,2]
[311637185,1705276233277,-418.418,0.000259,2]
[311637186,1705276233300,-2089.15,0.000259,2]
[311637187,1705276233312,-840.14694,0.000259,2]
[311637188,1705276233324,-23375.97751241,0.000259,2]
[311637189,1705276233333,-343.0,0.00026,2]
[311637190,1705276233343,-205.0,0.00026056,7]
[311637191,1705276233352,-150.0,0.00026079,2]
[311637192,1705276233362,-500.0,0.00026289,2]
[311637193,1705276233371,-734.425391,0.00026356,2]
[311637194,1705276233380,-7511.19,0.00026575,2]
[311637195,1705276233389,-9110.458,0.00026659,2]
[311637196,1705276233400,-383.89,0.000267,2]
[311637197,1705276233409,-1911.90313155,0.00026757,2]
[311637198,1705276233419,-286.67493421,0.00026758,2]
[311637199,1705276233428,-198.97051036,0.00026758,2]
[311637200,1705276233437,-234.89781562,0.00026758,2]
[311637201,1705276233447,-155.0,0.00026758,2]
[311637202,1705276233456,-657.651084,0.00026758,2]
[311637203,1705276233465,-236.17727712,0.00026759,2]
[311637204,1705276233475,-2506.28525538,0.00026759,2]
[311637205,1705276233484,-6056.54617946,0.00026759,2]
[311637206,1705276233494,-216.12,0.00026774,2]
[311637207,1705276233503,-1333.29,0.00026774,2]
[311637208,1705276233512,-279.06,0.0002682,2]
[311637209,1705276233522,-5000.0,0.000269,2]
[311637210,1705276233531,-1400.0,0.00027,3]
[311637211,1705276233540,-1000.0,0.00027232,2]
[311637212,1705276233549,-155.0,0.00027397,2]
[311637213,1705276233559,-2500.0,0.00027397,4]
[311637214,1705276233568,-250.0,0.00027397,2]
[311637215,1705276233578,-250.0,0.000274,2]
[311637216,1705276233586,-1000.0,0.00027475,2]
[311637217,1705276233596,-587.0,0.00027512,2]
[311637218,1705276233605,-279.06,0.00027798,2]
[311637219,1705276233614,-1163.736,0.00027899,2]
[311637220,1705276233623,-2271.0,0.00027899,2]
[311637221,1705276233632,-300.0,0.00027957,2]
[311637222,1705276233896,-200.0,0.00028,2]
[311637223,1705276233911,-201.54,0.00028033,2]
[311637224,1705276233921,-322.6212628,0.00028629,2]
[311637225,1705276233931,-155.0,0.00028767,2]
[311637226,1705276233941,-279.06,0.00028777,2]
[311637227,1705276233951,-156.95,0.0002885,2]
[311637228,1705276233960,-150.0,0.00028957,2]
[311637229,1705276233970,-383.89,0.00028964,2]
[311637230,1705276233981,-1450.0,0.00029,3]
[311637231,1705276233990,-300.0,0.00029219,2]
[311637232,1705276234000,-150.0,0.00029219,2]
[311637233,1705276234010,-1976.29,0.00029315,2]
[311637234,1705276234019,-205.0,0.0002945,12]
[311637235,1705276234029,-187.78095067,0.000295,3]
[311637236,1705276234039,-500.0,0.000296,10]
[311637237,1705276234048,-1000.0,0.00029648,7]
[311637238,1705276234057,-152.66418,0.000297,2]
[311637239,1705276234068,-1000.0,0.000297,10]
[311637240,1705276234077,-279.06,0.00029755,2]
[311637241,1705276234086,-150.0,0.00029767,2]
[311637242,1705276234096,-150.0,0.0002978,2]
[311637243,1705276234106,-175.36700291,0.000298,2]
[311637244,1705276234115,-1500.0,0.000298,10]
[311637245,1705276234125,-155.49966614,0.00029832,2]
[311637246,1705276234135,-494.02868803,0.00029832,2]
[311637247,1705276234144,-2648.05848665,0.0002984,2]
[311637248,1705276234154,-155.0,0.00029847,2]
[311637249,1705276234163,-237.0,0.00029855,2]
[311637250,1705276234173,-159.58006256,0.00029899,2]
[311637251,1705276234183,-500.0,0.000299,2]
[311637252,1705276234192,-500.0,0.000299,2]
[311637253,1705276234201,-500.0,0.000299,2]
[311637254,1705276234211,-500.0,0.000299,2]
[311637255,1705276234220,-500.0,0.000299,2]
[311637256,1705276234230,-500.0,0.000299,2]
[311637257,1705276234240,-500.0,0.000299,2]
[311637258,1705276234250,-500.0,0.000299,2]
[311637259,1705276234260,-500.0,0.000299,2]
[311637260,1705276234271,-500.0,0.000299,2]
[311637261,1705276234280,-500.0,0.000299,2]
[311637262,1705276234290,-500.0,0.000299,2]
[311637263,1705276234300,-500.0,0.000299,2]
[311637264,1705276234309,-500.0,0.000299,2]
[311637265,1705276234319,-500.0,0.000299,2]
[311637266,1705276234329,-500.0,0.000299,2]
[311637267,1705276234338,-500.0,0.000299,2]
[311637268,1705276234347,-500.0,0.000299,2]
[311637269,1705276234356,-500.0,0.000299,2]
[311637270,1705276234365,-500.0,0.000299,2]
[311637271,1705276234375,-500.0,0.000299,2]
[311637272,1705276234385,-500.0,0.000299,2]
[311637273,1705276234395,-500.0,0.000299,2]
[311637274,1705276234405,-500.0,0.000299,2]
[311637275,1705276234414,-500.0,0.000299,2]
[311637276,1705276234423,-500.0,0.000299,2]
[311637277,1705276234432,-500.0,0.000299,2]
[311637278,1705276234442,-500.0,0.000299,2]
[311637279,1705276234451,-500.0,0.000299,2]
[311637280,1705276234460,-500.0,0.000299,2]
[311637281,1705276234469,-500.0,0.000299,2]
[311637282,1705276234479,-500.0,0.000299,2]